bitfinex/quotes_SOLUSD_20251214
["timestamp","ask_amount","ask_price","bid_price","bid_amount"]
[1765751342843,0.71,130.0,129.97,8.39383242]
[1765751344151,0.71,130.0,129.97,7.69383242]
[1765751344446,0.71,130.0,129.97,8.39383242]
[1765751353266,0.71,130.0,129.96,7.69467528]
[1765751353454,17.88506222,130.01,129.96,7.69467528]
[1765751353455,18.59506222,130.01,129.98,0.7]
[1765751353656,0.71,130.0,129.97,0.7]
[1765751355085,0.71,130.0,129.97,8.39381075]
[1765751358060,0.71,130.0,129.97,0.7]
[1765751360588,0.71,130.0,129.97,8.39395247]
[1765751363679,8.42,130.01,129.98,0.7]
[1765751363876,9.13,130.01,129.98,0.7]
[1765751365987,9.13,130.01,129.98,8.39330405]
[1765751366564,10.90305994,130.01,129.98,8.39330405]
[1765751368987,0.71,130.0,129.98,8.39330405]
[1765751373612,9.13,130.01,129.98,8.39330405]
[1765751373775,9.13,130.01,129.99,0.67]
[1765751373977,9.13,130.01,129.98,8.36330405]
[1765751374685,8.42,130.01,129.98,8.36330405]
[1765751374877,0.71,130.0,129.98,8.36330405]
[1765751381245,9.13,130.01,129.99,0.67]
[1765751381826,9.13,130.01,129.98,8.36330405]
[1765751381988,8.42,130.01,129.98,8.36330405]
[1765751382194,0.71,130.0,129.99,7.69289945]
[1765751383528,9.13,130.01,129.99,7.69289945]
[1765751383708,0.71,130.0,129.99,7.69289945]
[1765751388823,8.42,130.01,129.99,7.69289945]
[1765751389195,8.42,130.01,129.99,8.36289945]
[1765751389519,9.13,130.01,129.99,8.36289945]
[1765751391503,8.42,130.01,129.99,7.69289945]
[1765751391703,0.71,130.0,129.99,7.69289945]
[1765751392021,8.42,130.01,129.99,7.69289945]
[1765751392209,0.71,130.0,129.99,7.69289945]
[1765751392411,9.13,130.01,129.99,7.69289945]
[1765751395127,9.13,130.01,129.99,0.67]
[1765751395525,9.13,130.01,129.98,7.6934913]
[1765751395728,9.13,130.01,129.98,8.3634913]
[1765751397030,9.13,130.01,129.98,27.59721956]
[1765751397206,9.13,130.01,129.98,29.3702795]
[1765751397406,0.71,130.01,129.98,29.3702795]
[1765751400108,0.71,130.01,129.98,29.66516401]
[1765751400308,0.71,130.01,129.98,52.7607412]
[1765751400632,0.71,130.01,129.98,50.69279675]
[1765751400815,0.71,130.01,129.99,0.72]
[1765751401014,0.71,130.01,129.98,27.64721956]
[1765751401820,0.71,130.01,129.98,7.6934913]
[1765751402127,2.77794445,130.01,129.98,7.6934913]
[1765751402628,0.69,130.0,129.98,7.6934913]
[1765751402830,0.69,130.0,129.97,7.6938491]
[1765751402831,11.17794445,130.0,129.97,7.6938491]
[1765751403030,2.06794445,129.99,129.96,30.79183272]
[1765751403231,2.75794445,129.99,129.96,30.79183272]
[1765751403419,0.69,129.98,129.96,7.69447737]
[1765751404222,0.69,129.98,129.95,7.69526741]
[1765751404929,2.06794445,129.97,129.94,7.69567004]
[1765751405229,10.48794445,129.97,129.94,7.69567004]
[1765751405431,0.69,129.96,129.94,7.69567004]
[1765751408935,3.46222665,129.96,129.91,13.0470912]
[1765751409147,2.77222665,129.95,129.91,7.69757709]
[1765751409474,2.77222665,129.95,129.89,12.11222665]
[1765751409475,2.77222665,129.92,129.89,0.2]
[1765751409647,5.5444533,129.9,129.88,0.2]
[1765751409816,9.11,129.91,129.87,0.2]
[1765751410013,3.08285163,129.89,129.87,0.2]
[1765751410211,3.08285163,129.89,129.87,10.67190225]
[1765751410412,0.69,129.9,129.87,8.6196756]
[1765751410826,0.69,129.9,129.87,7.8996756]
[1765751411034,0.69,129.9,129.87,0.2]
[1765751411035,3.46222665,129.9,129.87,0.2]
[1765751411231,2.77222665,129.89,129.87,0.2]
[1765751411411,8.42,129.88,129.87,0.2]
[1765751411615,9.11,129.88,129.87,0.2]
[1765751412016,8.42,129.88,129.87,7.9000077]
[1765751412616,11.88222665,129.88,129.87,0.2]
[1765751413019,9.11,129.88,129.87,0.2]
[1765751413221,11.88222665,129.88,129.87,0.2]
[1765751413427,9.11,129.88,129.87,0.2]
[1765751413647,9.11,129.88,129.87,7.9000077]
[1765751414942,9.11,129.88,129.87,0.2]
[1765751415161,11.88222665,129.88,129.87,0.2]
[1765751415457,9.11,129.88,129.87,0.2]
[1765751415656,11.88222665,129.88,129.87,0.2]
[1765751416235,9.11,129.88,129.87,0.2]
[1765751416450,11.88222665,129.88,129.87,0.2]
[1765751417189,12.16654979,129.88,129.87,0.2]
[1765751417331,34.02358591,129.88,129.87,0.2]
[1765751417749,24.92931785,129.88,129.87,0.2]
[1765751418770,9.11,129.88,129.87,0.2]
[1765751421791,19.7827633,129.88,129.87,0.2]
[1765751421943,17.01053665,129.88,129.87,0.2]
[1765751422433,8.42,129.88,129.87,7.9000077]
[1765751422633,9.05210649,129.93,129.87,8.6200077]
[1765751422634,17.70053665,129.9,129.87,8.6200077]
[1765751422862,25.45053665,129.9,129.88,0.72]
[1765751423168,8.44,129.9,129.88,0.72]
[1765751423666,8.44,129.9,129.89,7.69882208]
[1765751424683,9.13,129.9,129.88,7.699299]
[1765751424869,0.69,129.89,129.88,7.699299]
[1765751425068,8.44,129.9,129.88,7.699299]
[1765751425373,9.13,129.9,129.88,7.699299]
[1765751425569,0.69,129.89,129.88,7.699299]
[1765751427763,0.69,129.89,129.87,7.89983578]
[1765751429038,16.139299,129.9,129.88,0.68]
[1765751429244,0.66,129.89,129.87,27.14985503]
[1765751429447,0.66,129.89,129.87,0.2]
[1765751429848,3.43222665,129.89,129.87,0.2]
[1765751430239,0.66,129.88,129.87,0.2]
[1765751430682,3.43222665,129.88,129.87,0.2]
[1765751431374,0.66,129.88,129.87,0.2]
[1765751431554,3.43222665,129.88,129.87,0.2]
[1765751431755,0.66,129.88,129.87,0.2]
[1765751432467,9.1,129.9,129.87,8.5800077]
[1765751432771,0.66,129.89,129.87,0.2]
[1765751432971,2.77222665,129.88,129.87,0.2]
[1765751433354,16.47931785,129.88,129.87,0.2]
[1765751433765,13.7070912,129.88,129.87,0.2]
[1765751433972,16.47931785,129.88,129.87,0.2]
[1765751434156,33.27300075,129.88,129.87,0.2]
[1765751434356,30.5007741,129.88,129.87,0.2]
[1765751434555,25.28926277,129.88,129.87,0.2]
[1765751434958,32.98867761,129.88,129.87,0.2]
[1765751435253,33.27300075,129.88,129.87,0.2]
[1765751436148,30.5007741,129.88,129.87,0.2]
[1765751436471,33.27300075,129.88,129.87,0.2]
[1765751436673,20.22590955,129.88,129.86,0.2]
[1765751436880,13.0470912,129.85,129.83,0.2]
[1765751437178,8.44,129.84,129.83,0.2]
[1765751437888,8.44,129.84,129.79,0.1]
[1765751437889,8.80994492,129.83,129.79,0.1]
[1765751438179,22.14135926,129.8,129.79,0.1]
[1765751438348,21.4870912,129.8,129.79,0.1]
[1765751438552,22.1470912,129.8,129.79,0.1]
[1765751438854,34.02083619,129.8,129.79,0.1]
[1765751439377,89.65322192,129.78,129.77,0.1]
[1765751439581,13.0470912,129.75,129.74,0.2]
[1765751439790,41.06796528,129.75,129.74,0.2]
[1765751439967,41.52796528,129.75,129.74,0.2]
[1765751440300,9.09426806,129.74,129.69,0.78]
[1765751440589,13.0470912,129.71,129.66,8.39242272]
[1765751440783,8.44,129.7,129.67,0.68]
[1765751440987,0.46,129.73,129.67,0.68]
[1765751441155,2.77947693,129.71,129.67,0.68]
[1765751441356,17.24994492,129.72,129.67,0.68]
[1765751441559,17.70994492,129.72,129.67,0.68]
[1765751441759,0.46,129.71,129.67,0.68]
[1765751441990,2.77947693,129.7,129.67,0.68]
[1765751442288,8.44,129.71,129.68,0.68]
[1765751442482,11.67947693,129.71,129.66,0.68]
[1765751442657,11.67947693,129.71,129.66,8.39224358]
[1765751442658,30.29703612,129.71,129.66,8.39224358]
[1765751442857,24.72656813,129.71,129.66,8.39224358]
[1765751443082,2.77947693,129.7,129.67,0.68]
[1765751443323,2.77947693,129.69,129.65,0.68]
[1765751443479,8.44,129.68,129.66,0.68]
[1765751443785,11.21947693,129.68,129.63,10.49371272]
[1765751444166,0.46,129.67,129.63,0.68]
[1765751444357,2.77947693,129.68,129.64,0.68]
[1765751444568,8.44,129.67,129.64,0.18]
[1765751444769,8.44,129.67,129.63,7.71413703]
[1765751444986,8.44,129.67,129.63,10.49361396]
[1765751445163,8.44,129.67,129.63,7.71413703]
[1765751445887,8.44,129.67,129.63,10.49361396]
[1765751446075,8.44,129.67,129.63,7.71413703]
[1765751446275,13.7070912,129.71,129.65,2.77947693]
[1765751446478,8.44,129.7,129.64,0.68]
[1765751446664,8.44,129.7,129.66,2.77947693]
[1765751446997,9.1,129.7,129.64,0.68]
[1765751447207,0.66,129.69,129.64,0.68]
[1765751447410,11.87947693,129.7,129.65,2.77947693]
[1765751447606,2.77947693,129.68,129.64,0.68]
[1765751447908,8.44,129.67,129.64,8.39331343]
[1765751448108,8.44,129.67,129.64,11.17279036]
[1765751448314,8.44,129.67,129.65,0.68]
[1765751449201,84.05210649,129.73,129.65,0.68]
[1765751449202,8.44,129.7,129.65,0.68]
[1765751449630,3.43947693,129.69,129.65,0.68]
[1765751449835,7.71128932,129.68,129.64,0.68]
[1765751450024,8.44,129.67,129.64,0.68]
[1765751450336,9.1,129.67,129.64,8.39357489]
[1765751450537,8.44,129.67,129.64,0.68]
[1765751451037,8.44,129.67,129.65,0.68]
[1765751451825,8.44,129.67,129.62,19.28679918]
[1765751452008,8.44,129.67,129.64,3.45947693]
[1765751452212,7.7113111,129.68,129.64,0.68]
[1765751452407,8.44,129.67,129.65,0.68]
[1765751452627,8.44,129.68,129.62,19.28679918]
[1765751452807,8.44,129.68,129.64,0.68]
[1765751453544,9.1,129.68,129.64,0.68]
[1765751453719,9.1,129.68,129.61,0.68]
[1765751453720,9.46994492,129.67,129.61,0.68]
[1765751453919,7.71247879,129.66,129.6,8.39587824]
[1765751454121,8.80994492,129.65,129.6,10.49541159]
[1765751454430,9.1,129.64,129.61,0.68]
[1765751454666,8.44,129.64,129.61,8.39545017]
[1765751454827,8.37247879,129.66,129.62,7.71485554]
[1765751455028,8.44,129.66,129.62,7.89485554]
[1765751455358,8.44,129.66,129.63,0.68]
[1765751455546,8.44,129.66,129.63,3.45947693]
[1765751455754,8.44,129.66,129.63,0.68]
[1765751456056,8.44,129.67,129.64,8.39320916]
[1765751456436,9.11,129.67,129.64,0.69]
[1765751456632,8.44,129.67,129.64,0.69]
[1765751457033,8.44,129.67,129.64,8.40349717]
[1765751457238,8.44,129.67,129.64,11.1829741]
[1765751457434,8.44,129.67,129.65,0.69]
[1765751457644,8.44,129.68,129.65,3.46947693]
[1765751457851,8.44,129.68,129.66,7.71247879]
[1765751458061,8.44,129.68,129.66,8.40247879]
[1765751458399,8.44,129.68,129.67,3.46947693]
[1765751458527,8.44,129.7,129.67,0.69]
[1765751458729,8.44,129.7,129.68,0.69]
[1765751458959,2.77947693,129.71,129.68,0.69]
[1765751459162,8.44,129.7,129.68,0.69]
[1765751459468,21.42611811,129.72,129.68,0.69]
[1765751459639,11.21947693,129.71,129.68,0.69]
[1765751459830,11.88947693,129.71,129.68,0.69]
[1765751460030,19.59926118,129.71,129.68,0.69]
[1765751460259,8.44,129.71,129.68,0.69]
[1765751460480,8.90994492,129.76,129.69,2.77947693]
[1765751460481,8.37716468,129.75,129.69,2.77947693]
[1765751460641,8.44,129.73,129.69,2.77947693]
[1765751460956,11.21947693,129.73,129.7,0.69]
[1765751461167,8.44,129.73,129.7,0.69]
[1765751461534,8.44,129.73,129.7,8.3996515]
[1765751461753,8.44,129.73,129.71,2.77947693]
[1765751461931,8.44,129.73,129.71,3.46947693]
[1765751462160,8.44,129.76,129.72,3.46947693]
[1765751462337,8.44,129.76,129.73,2.77947693]
[1765751462533,8.44,129.76,129.73,0.69]
[1765751462739,8.44,129.76,129.71,2.77947693]
[1765751462939,8.44,129.76,129.74,0.69]
[1765751463447,7.70524684,129.79,129.74,11.17712921]
[1765751463769,8.44,129.78,129.74,11.17712921]
[1765751464057,11.21947693,129.78,129.75,0.69]
[1765751464259,8.44,129.78,129.75,0.69]
[1765751464746,8.44,129.78,129.75,3.46947693]
[1765751465145,19.35564956,129.84,129.76,3.46947693]
[1765751465345,8.44,129.83,129.78,2.77947693]
[1765751465550,8.3733122,129.82,129.79,0.69]
[1765751465852,8.44,129.83,129.79,3.46947693]
[1765751466162,8.44,129.83,129.8,2.77947693]
[1765751466462,8.44,129.83,129.81,0.69]
[1765751467142,0.2,129.85,129.81,0.69]
[1765751467343,0.2,129.85,129.83,2.77947693]
[1765751467555,0.2,129.85,129.84,7.70178681]
[1765751467736,0.2,129.85,129.84,11.17126374]
[1765751468164,0.1,129.9,129.86,0.28432314]
[1765751468367,0.1,129.9,129.88,2.77947693]
[1765751468570,11.1464282,129.93,129.87,0.69]
[1765751468866,3.44947693,129.92,129.87,0.69]
[1765751469066,3.44947693,129.92,129.87,3.46947693]
[1765751469067,0.67,129.92,129.87,3.46947693]
[1765751469362,2.44556808,129.92,129.88,0.69]
[1765751469568,10.14267808,129.92,129.88,0.69]
[1765751469735,16.80625838,129.94,129.88,8.3890372]
[1765751469934,1.77556808,129.93,129.88,10.16460528]
[1765751470356,0.67,129.93,129.89,0.69]
[1765751470748,16.13625838,129.94,129.89,2.46556808]
[1765751470945,16.80625838,129.94,129.89,2.46556808]
[1765751471161,0.67,129.93,129.89,2.46556808]
[1765751471364,16.13625838,129.94,129.89,2.46556808]
[1765751471365,16.13625838,129.94,129.9,0.69]
[1765751471568,21.56060167,129.94,129.9,0.69]
[1765751472075,8.44,129.94,129.9,5.44434329]
[1765751472461,8.44,129.94,129.91,0.69]
[1765751473082,8.44,129.94,129.89,0.69]
[1765751473083,0.67,129.93,129.89,0.69]
[1765751473274,0.67,129.93,129.87,8.38996889]
[1765751473580,9.19426806,129.98,129.88,19.93752401]
[1765751473738,9.19426806,129.98,129.89,7.69868026]
[1765751473739,5.42434329,129.94,129.89,7.69868026]
[1765751473944,0.67,129.94,129.88,13.0470912]
[1765751474168,5.42434329,129.93,129.89,0.69]
[1765751474689,4.75434329,129.9,129.85,7.70115181]
[1765751474977,8.44,129.92,129.84,0.69]
[1765751474978,7.69885258,129.89,129.84,0.69]
[1765751475151,0.67,129.91,129.85,4.75434329]
[1765751475480,0.1,129.94,129.89,4.75434329]
[1765751475657,8.44,129.94,129.89,4.75434329]
[1765751475971,8.44,129.94,129.9,0.69]
[1765751476163,8.95210649,129.98,129.9,0.69]
[1765751476164,12.44783459,129.98,129.92,4.75434329]
[1765751476359,8.3634913,129.98,129.93,4.75434329]
[1765751476590,26.92721956,129.98,129.9,0.69]
[1765751476750,4.75434329,129.96,129.91,4.75434329]
[1765751476942,12.44917186,129.96,129.92,0.69]
[1765751477145,0.67,130.0,129.95,4.75434329]
[1765751477374,0.3,130.01,129.98,4.7481987]
[1765751477578,0.3,130.01,129.94,0.69]
[1765751477763,7.89177759,130.01,129.97,4.7481987]
[1765751478282,8.56177759,130.01,129.97,0.69]
[1765751478844,8.56177759,130.01,129.98,4.7481987]
[1765751479478,8.56177759,130.01,129.97,5.4381987]
[1765751479688,4.7481987,129.99,129.94,13.13400889]
[1765751479855,0.67,130.0,129.95,12.44320884]
[1765751480050,4.7481987,129.99,129.94,7.69579517]
[1765751480374,5.4181987,130.0,129.94,13.13399387]
[1765751480576,0.67,129.99,129.94,13.13399387]
[1765751480988,8.36321091,129.99,129.95,0.69]
[1765751481195,8.36321091,129.99,129.95,5.4381987]
[1765751481663,8.36321091,129.99,129.95,0.69]
[1765751484088,0.67,129.98,129.95,0.69]
[1765751484295,5.4181987,129.98,129.93,0.69]
[1765751484463,7.69408324,129.97,129.93,0.69]
[1765751484662,8.36408324,129.97,129.93,8.38631532]
[1765751485083,0.67,129.97,129.94,0.69]
[1765751485391,8.36305323,129.99,129.94,0.69]
[1765751485689,7.69305323,129.99,129.94,5.4381987]
[1765751485897,8.36305323,129.99,129.94,5.4381987]
[1765751486077,8.36305323,129.99,129.95,0.69]
[1765751486277,9.31,130.01,129.96,4.7481987]
[1765751486483,9.31,130.01,129.96,12.44264974]
[1765751486689,9.31,130.01,129.97,0.69]
[1765751487289,0.71,130.0,129.97,0.69]
[1765751487692,8.40261184,130.0,129.95,7.69509458]
[1765751487874,13.15081054,130.0,129.96,0.67]
[1765751488277,0.71,129.99,129.96,0.67]
[1765751489384,5.4581987,129.99,129.94,8.36581362]
[1765751489587,13.15155239,129.99,129.94,8.36581362]
[1765751489802,0.71,129.98,129.94,8.36581362]
[1765751489982,4.7481987,129.95,129.9,0.67]
[1765751490178,4.7481987,129.94,129.89,0.1]
[1765751490495,4.7481987,129.91,129.87,8.36955072]
[1765751490885,4.7481987,129.91,129.88,0.67]
[1765751491085,4.7481987,129.9,129.87,0.67]
[1765751491296,0.71,129.9,129.84,0.67]
[1765751491473,13.15714173,129.89,129.84,8.37160251]
[1765751491870,5.4581987,129.88,129.84,0.67]
[1765751492482,5.4581987,129.88,129.84,8.3716827]
[1765751492685,0.71,129.88,129.84,8.3716827]
[1765751492914,0.71,129.88,129.85,0.67]
[1765751493607,7.69894303,129.89,129.85,0.67]
[1765751493780,8.408364,129.9,129.85,13.11902239]
[1765751493982,0.71,129.89,129.85,13.11902239]
[1765751494208,8.408364,129.9,129.86,0.67]
[1765751494719,0.71,129.89,129.85,0.67]
[1765751495202,1.21,129.89,129.82,19.2569749]
[1765751495406,4.7481987,129.86,129.81,0.67]
[1765751495573,4.7481987,129.85,129.81,8.37313323]
[1765751495899,4.7481987,129.86,129.81,8.37313323]
[1765751496106,5.4581987,129.86,129.81,8.37313323]
[1765751496281,5.4581987,129.85,129.81,0.67]
[1765751496484,5.4581987,129.85,129.8,8.37405835]
[1765751496817,0.71,129.84,129.8,7.70405835]
[1765751497006,0.71,129.84,129.81,0.67]
[1765751497608,12.44963206,129.85,129.81,8.37356545]
[1765751497794,4.7481987,129.87,129.81,13.12176415]
[1765751498001,5.4581987,129.87,129.82,0.67]
[1765751498207,0.71,129.86,129.82,0.67]
[1765751498712,5.4581987,129.86,129.82,0.67]
[1765751499029,5.4581987,129.86,129.79,0.67]
[1765751499030,27.66222154,129.86,129.79,0.67]
[1765751499188,5.4581987,129.85,129.8,8.37368978]
[1765751499388,13.8981987,129.84,129.79,0.67]
[1765751499783,5.4581987,129.83,129.79,0.67]
[1765751500318,5.4581987,129.83,129.79,8.37463658]
[1765751500487,12.45062126,129.83,129.79,8.37463658]
[1765751500687,0.71,129.82,129.75,13.1681987]
[1765751501008,0.71,129.82,129.76,5.4181987]
[1765751501191,5.4581987,129.82,129.77,0.67]
[1765751501391,0.71,129.82,129.77,0.67]
[1765751501586,0.71,129.81,129.75,5.4181987]
[1765751501895,0.71,129.81,129.76,5.4181987]
[1765751502300,0.71,129.81,129.77,0.67]
[1765751502607,0.71,129.81,129.77,8.3757688]
[1765751503103,13.16188929,129.81,129.77,8.3757688]
[1765751503479,8.41369059,129.81,129.77,8.3757688]
[1765751504308,16.85369059,129.81,129.77,8.3757688]
[1765751504502,0.71,129.8,129.77,0.67]
[1765751504685,0.71,129.8,129.75,5.4181987]
[1765751505016,4.7481987,129.79,129.75,8.37697357]
[1765751505214,5.4581987,129.8,129.75,8.37697357]
[1765751505416,0.71,129.8,129.76,8.37645506]
[1765751505810,0.71,129.8,129.77,0.67]
[1765751506008,8.44,129.81,129.78,4.7481987]
[1765751506619,8.44,129.81,129.78,0.67]
[1765751506817,8.44,129.81,129.77,7.70580198]
[1765751506818,16.85380534,129.81,129.77,8.37580198]
[1765751506987,0.71,129.8,129.76,8.37632701]
[1765751507184,4.7481987,129.79,129.75,7.70701272]
[1765751507420,4.7481987,129.79,129.75,8.37701272]
[1765751507616,0.71,129.79,129.75,0.67]
[1765751508020,21.60200404,129.81,129.76,7.70642]
[1765751508216,16.85380534,129.81,129.76,12.4546187]
[1765751508400,16.85380534,129.81,129.77,8.37593666]
[1765751508924,0.71,129.8,129.77,0.67]
[1765751509522,16.14380534,129.81,129.77,0.67]
[1765751509726,0.71,129.8,129.76,7.70638707]
[1765751509908,8.41427021,129.8,129.77,0.67]
[1765751510727,8.41427021,129.8,129.76,0.67]
[1765751511801,8.41504983,129.79,129.73,7.70831727]
[1765751512003,8.41504983,129.79,129.73,13.12651597]
[1765751512233,0.71,129.78,129.74,0.67]
[1765751512598,9.15,129.78,129.74,5.4181987]
[1765751512817,4.7481987,129.76,129.69,0.67]
[1765751513013,13.0470912,129.74,129.7,0.67]
[1765751513227,17.7952899,129.74,129.7,0.67]
[1765751513409,0.71,129.73,129.7,0.17]
[1765751513720,5.4581987,129.73,129.68,7.71115616]
[1765751513924,13.1669239,129.73,129.67,12.45995832]
[1765751515127,13.8981987,129.72,129.66,19.38073939]
[1765751515336,13.8981987,129.72,129.66,5.5181987]
[1765751515552,13.8981987,129.72,129.66,4.8481987]
[1765751515699,13.8981987,129.72,129.67,0.67]
[1765751516028,0.71,129.71,129.66,4.87086675]
[1765751516237,0.71,129.71,129.66,5.54086675]
[1765751516536,0.71,129.71,129.67,0.7]
[1765751516924,0.71,129.71,129.67,8.41163989]
[1765751517259,8.41952054,129.71,129.67,8.41163989]
[1765751517595,8.41952054,129.71,129.67,5.91163989]
[1765751518339,0.7,129.7,129.66,4.87086675]
[1765751518573,0.7,129.71,129.67,4.77086675]
[1765751518769,0.7,129.7,129.66,0.1]
[1765751518939,9.14,129.72,129.68,4.77086675]
[1765751519139,0.7,129.71,129.66,0.1]
[1765751519336,0.7,129.71,129.66,4.87086675]
[1765751519540,0.7,129.71,129.67,4.77086675]
[1765751519835,0.7,129.71,129.67,5.31086675]
[1765751520362,0.7,129.71,129.67,7.71149098]
[1765751520573,0.7,129.71,129.67,13.02235773]
[1765751521136,8.44,129.72,129.68,5.31086675]
[1765751521342,9.14,129.75,129.7,4.77086675]
[1765751521539,0.7,129.74,129.7,5.31086675]
[1765751522368,8.44,129.75,129.71,13.01984488]
[1765751522680,0.8,129.79,129.74,4.77086675]
[1765751522980,9.14,129.81,129.76,4.77086675]
[1765751523168,8.44,129.81,129.78,4.77086675]
[1765751523331,16.14357693,129.81,129.77,4.77086675]
[1765751523533,8.44,129.81,129.77,4.77086675]
[1765751523750,8.44,129.81,129.78,5.31086675]
[1765751524084,8.44,129.81,129.78,0.54]
[1765751524247,8.44,129.81,129.79,13.01530413]
[1765751524457,8.44,129.81,129.79,8.24443738]
[1765751525075,0.7,129.81,129.76,5.31086675]
[1765751525262,0.7,129.81,129.77,0.54]
[1765751525577,5.47086675,129.81,129.76,20.75321936]
[1765751525776,4.77086675,129.82,129.77,12.47653939]
[1765751526100,0.1,129.86,129.82,13.0470912]
[1765751526239,8.44,129.89,129.84,4.77086675]
[1765751526240,24.57882208,129.89,129.84,4.77086675]
[1765751526441,8.44,129.89,129.86,4.77086675]
[1765751526670,8.44,129.89,129.87,4.77086675]
[1765751527040,0.7,129.9,129.87,4.77086675]
[1765751527254,0.7,129.9,129.86,5.31086675]
[1765751527766,8.44,129.92,129.89,4.77086675]
[1765751527958,8.44,129.92,129.9,4.77086675]
[1765751528168,0.7,129.94,129.9,4.77086675]
[1765751528468,13.16674468,129.94,129.88,4.77086675]
[1765751528851,0.72,129.93,129.88,4.77086675]
[1765751529250,0.72,129.93,129.89,4.77086675]
[1765751529467,16.85537504,129.95,129.9,4.77086675]
[1765751529650,0.72,129.94,129.9,4.77086675]
[1765751529864,0.72,129.95,129.92,4.77086675]
[1765751530265,0.72,129.95,129.91,5.31086675]
[1765751530476,7.69480555,129.96,129.92,4.77086675]
[1765751530788,12.46501477,129.97,129.91,4.77086675]
[1765751531109,12.46501477,129.97,129.89,8.44]
[1765751531110,4.77086675,129.94,129.89,8.44]
[1765751531276,13.21086675,129.94,129.88,25.51710557]
[1765751531476,0.72,129.93,129.89,5.22560769]
[1765751531673,0.72,129.93,129.88,7.69914762]
[1765751531976,0.72,129.93,129.89,7.72560769]
[1765751532690,8.41671798,129.93,129.86,16.14026657]
[1765751532869,7.72560769,129.91,129.85,7.72560769]
[1765751533069,7.72560769,129.89,129.83,29.21269889]
[1765751533585,0.72,129.88,129.83,7.70232927]
[1765751533782,8.44560769,129.88,129.83,7.70232927]
[1765751534168,0.72,129.87,129.82,15.42851012]
[1765751534692,8.42029568,129.87,129.82,15.42851012]
[1765751534878,8.42029568,129.87,129.82,8.24290243]
[1765751535193,0.72,129.86,129.82,15.96851012]
[1765751536065,0.72,129.88,129.83,7.72560769]
[1765751537169,7.7000077,129.87,129.82,7.70290243]
[1765751537380,8.41948591,129.88,129.83,8.26560769]
[1765751537586,8.41948591,129.88,129.83,0.54]
[1765751537781,0.72,129.87,129.83,8.26560769]
[1765751537981,0.72,129.87,129.83,0.54]
[1765751538694,0.72,129.87,129.83,15.96778457]
[1765751539215,0.72,129.87,129.83,8.24217688]
[1765751540514,8.42002956,129.87,129.82,7.7028436]
[1765751540701,8.42002956,129.87,129.82,7.70280595]
[1765751541018,0.72,129.86,129.82,8.24280595]
[1765751542906,0.72,129.86,129.82,7.70280595]
[1765751543412,8.42091692,129.86,129.82,7.70280595]
[1765751543798,0.72,129.85,129.82,7.70280595]
[1765751545317,13.0470912,129.88,129.83,8.26560769]
[1765751545616,8.44,129.9,129.87,7.72560769]
[1765751545788,0.72,129.92,129.88,7.72560769]
[1765751545990,8.41714058,129.92,129.87,7.72560769]
[1765751546410,0.69,129.91,129.87,8.26560769]
[1765751547217,9.13,129.93,129.89,7.69882208]
[1765751547512,8.44,129.93,129.91,7.72560769]
[1765751547716,8.44,129.93,129.9,8.26560769]
[1765751548227,13.7370912,129.95,129.9,0.54]
[1765751548408,0.69,129.94,129.9,8.26560769]
[1765751548801,9.13,129.96,129.92,7.72560769]
[1765751548991,9.13,129.96,129.91,8.26560769]
[1765751549318,9.13,129.96,129.92,15.42265202]
[1765751549524,9.13,129.96,129.92,15.96265202]
[1765751549823,0.2,129.98,129.95,7.72560769]